bitfinex-derivatives/quotes_ETHF0:USTF0_20240904
["timestamp","ask_amount","ask_price","bid_price","bid_amount"]
[1725457089106,0.00624402,2398.0,2397.6,0.41708]
[1725457089304,3.2078,2397.9,2397.7,0.41708]
[1725457089698,3.2078,2397.9,2397.5,0.41712]
[1725457089897,3.2078,2397.9,2396.9,5.0]
[1725457090101,3.2078,2397.6,2397.2,0.41716]
[1725457090306,3.2078,2397.6,2396.8,0.3723]
[1725457090503,3.2078,2397.3,2396.9,0.41722]
[1725457090708,3.2078,2397.4,2396.9,0.41722]
[1725457090906,3.2078,2397.4,2396.8,0.3723]
[1725457090907,3.2078,2397.7,2397.2,0.41716]
[1725457091210,3.2078,2397.7,2396.9,5.0]
[1725457091401,3.2078,2397.7,2397.3,0.41715]
[1725457091599,3.2078,2397.7,2396.9,5.0]
[1725457091810,3.2078,2397.7,2397.6,0.4171]
[1725457092002,3.2078,2397.7,2397.6,4.5875]
[1725457092202,0.00624402,2398.0,2397.9,0.41705]
[1725457092408,0.00624402,2398.0,2397.2,5.0]
[1725457092610,0.00624402,2398.0,2396.9,5.0]
[1725457092611,3.2078,2397.9,2396.9,5.0]
[1725457092808,3.2078,2397.9,2397.7,0.41707]
[1725457093203,3.2078,2397.9,2397.8,0.41706]
[1725457093405,0.00624402,2398.0,2397.9,0.41705]
[1725457093406,0.00202888,2398.0,2397.9,0.41705]
[1725457093616,8.88e-06,2398.0,2397.9,15.58745]
[1725457093913,8.88e-06,2398.0,2397.9,4.58745]
[1725457094213,8.88e-06,2398.0,2397.9,0.41705]
[1725457094413,8.88e-06,2398.0,2397.9,10.58745]
[1725457094615,8.88e-06,2398.0,2397.9,19.83788]
[1725457094812,8.88e-06,2398.0,2397.9,16.63008]
[1725457095022,8.88e-06,2398.0,2397.9,9.58745]
[1725457095313,8.88e-06,2398.0,2397.9,4.58745]
[1725457095614,8.88e-06,2398.0,2397.9,10.58745]
[1725457095809,8.88e-06,2398.0,2397.9,17.67271]
[1725457096009,0.209,2399.3,2397.9,17.67271]
[1725457096010,0.209,2399.3,2398.3,1.04242]
[1725457096207,3.2078,2399.7,2398.8,5.0]
[1725457096413,3.2078,2399.4,2399.1,0.41683]
[1725457096609,3.2078,2399.4,2399.0,0.41684]
[1725457096921,3.2078,2399.4,2399.1,0.41684]
[1725457097109,3.2078,2399.4,2398.5,6.04234]
[1725457097110,0.00625717,2399.4,2399.3,0.4168]
[1725457097614,0.00625717,2399.4,2399.0,0.00625717]
[1725457097615,4.17425717,2399.4,2399.0,0.00625717]
[1725457097814,3.2078,2399.1,2399.0,0.00625717]
[1725457098213,7.3758,2399.1,2399.0,0.00625717]
[1725457099716,3.21405717,2399.4,2399.0,0.00625717]
[1725457100216,3.21405717,2399.4,2399.0,0.42309717]
[1725457100403,3.21405717,2399.4,2399.1,0.41683]
[1725457100610,3.21405717,2399.4,2399.0,0.00625717]
[1725457100811,3.21405717,2399.4,2399.3,0.4168]
[1725457101117,0.00625717,2399.4,2399.3,0.4168]
[1725457101314,7.17e-06,2399.4,2399.3,11.62682]
[1725457101510,7.17e-06,2399.4,2399.3,12.66884]
[1725457101820,7.17e-06,2399.4,2399.3,13.03194]
[1725457102419,7.17e-06,2399.4,2399.3,11.98992]
[1725457102616,7.17e-06,2399.4,2399.3,0.7799]
[1725457103220,7.17e-06,2399.4,2399.3,0.4168]
[1725457104112,7.17e-06,2399.4,2399.3,11.62682]
[1725457104619,7.17e-06,2399.4,2399.3,13.04444]
[1725457105319,7.17e-06,2399.4,2399.3,8.1682]
[1725457105521,7.17e-06,2399.4,2399.3,0.4168]
[1725457106018,7.17e-06,2399.4,2399.0,0.00625717]
[1725457106019,4.16800717,2399.4,2399.0,0.00625717]
[1725457106214,3.2078,2399.2,2399.0,0.42310717]
[1725457106418,7.17e-06,2399.4,2399.1,0.41684]
[1725457106611,7.17e-06,2399.4,2399.2,0.41682]
[1725457106819,7.17e-06,2399.4,2399.2,0.41681]
[1725457107025,7.17e-06,2399.4,2399.0,0.00625717]
[1725457107415,7.17e-06,2399.4,2399.3,0.4168]
[1725457107819,7.17e-06,2399.4,2399.3,4.5848]
[1725457108021,7.17e-06,2399.4,2399.0,5.00625717]
[1725457108022,7.17e-06,2399.4,2399.0,0.00625717]
[1725457108217,0.41679717,2399.4,2399.0,0.00625717]
[1725457108415,3.2078,2399.2,2399.0,0.00625717]
[1725457108725,3.2078,2399.2,2399.1,0.41684]
[1725457108927,7.17e-06,2399.4,2399.0,4.17425717]
[1725457109119,3.2078,2399.2,2399.0,0.00625717]
[1725457109317,3.2078,2399.2,2399.0,0.42310717]
[1725457109816,3.2078,2399.2,2399.1,0.41684]
[1725457110020,7.17e-06,2399.4,2399.3,0.4168]
[1725457110421,7.17e-06,2399.4,2399.3,10.5848]
[1725457110630,7.17e-06,2399.4,2399.3,11.62682]
[1725457110930,7.17e-06,2399.4,2399.3,28.70637316]
[1725457111132,3.2078,2401.3,2400.5,28.883]
[1725457111319,3.2078,2401.3,2400.5,34.09382654]
[1725457111718,3.2078,2401.3,2400.5,5.21082654]
[1725457112027,3.2078,2401.0,2400.8,0.41654]
[1725457112225,3.2078,2401.0,2400.3,0.7434]
[1725457112226,3.2078,2401.0,2400.7,0.00625717]
[1725457112819,4.1648,2400.9,2400.7,0.00625717]
[1725457113228,4.1656,2400.8,2400.7,0.00625717]
[1725457113428,7.7635,2401.0,2400.7,0.00625717]
[1725457113627,4.1648,2400.9,2400.7,0.00625717]
[1725457114021,4.1656,2400.8,2400.7,0.00625717]
[1725457114225,4.1648,2400.9,2399.5,8.9605]
[1725457114420,3.2078,2400.6,2399.9,3.2078]
[1725457114624,3.2078,2400.6,2400.0,3.2078]
[1725457114830,3.2078,2400.6,2399.8,1.0418]
[1725457115032,3.2078,2400.9,2400.0,3.2078]
[1725457115235,3.2078,2400.6,2400.5,0.4166]
[1725457115527,3.2078,2400.6,2400.2,0.00625717]
[1725457115734,3.2078,2400.3,2400.2,0.00625717]
[1725457115940,3.2078,2400.6,2400.3,0.41663]
[1725457116328,3.2078,2400.6,2400.2,0.00625717]
[1725457116628,3.2078,2400.6,2400.3,0.41662]
[1725457116822,3.2078,2400.6,2400.2,0.00625717]
[1725457117224,3.2078,2400.3,2400.2,0.00625717]
[1725457117432,3.2078,2400.3,2400.2,0.42290717]
[1725457118529,3.2078,2400.8,2400.7,0.41656]
[1725457118832,3.2078,2400.8,2400.2,0.00625717]
[1725457119330,3.2078,2400.8,2400.7,0.41656]
[1725457119938,3.2078,2400.8,2400.3,1.04155]
[1725457119939,3.2078,2400.8,2400.3,0.3542]
[1725457120138,3.21405717,2401.1,2401.0,0.41651]
[1725457120333,3.21405717,2401.1,2400.5,1.04147]
[1725457120334,7.37885717,2401.1,2400.8,0.41653]
[1725457120632,3.21405717,2401.1,2401.0,0.41651]
[1725457120832,0.00625717,2401.1,2401.0,0.41651]
[1725457121036,0.00625717,2401.1,2401.0,4.79026329]
[1725457121238,0.00625717,2401.1,2401.0,0.41651]
[1725457121440,3.21405717,2401.1,2400.3,5.7245]
[1725457121734,3.21405717,2401.1,2400.6,0.41657]
[1725457121934,0.00625717,2401.1,2400.6,0.21291271]
[1725457122128,0.00625717,2401.1,2401.0,0.41651]
[1725457122330,0.00625717,2401.1,2401.0,5.62259]
[1725457122539,0.00625717,2401.1,2401.0,4.58131]
[1725457122732,0.00625717,2401.1,2401.0,15.58131]
[1725457122934,0.00625717,2401.1,2401.0,16.62259]
[1725457123141,7.17e-06,2401.1,2401.0,19.83039]
[1725457123327,7.17e-06,2401.1,2401.0,15.58131]
[1725457123632,7.17e-06,2401.1,2401.0,19.83039]
[1725457123839,7.17e-06,2401.1,2401.0,18.78911]
[1725457124034,7.17e-06,2401.1,2401.0,15.58131]
[1725457124239,7.17e-06,2401.1,2401.0,24.2847643]
[1725457124445,7.17e-06,2401.1,2401.0,28.5338443]
[1725457124733,7.17e-06,2401.1,2401.0,26.7841243]
[1725457124937,7.17e-06,2401.1,2401.0,0.41651]
[1725457125539,7.17e-06,2401.1,2401.0,4.58131]
[1725457125740,7.17e-06,2401.1,2401.0,0.41651]
[1725457126840,7.17e-06,2401.1,2400.5,3.2078]
[1725457127033,3.2078,2401.0,2400.5,0.62252248]
[1725457127230,3.2078,2401.0,2400.6,0.41658]
[1725457127539,3.2078,2401.0,2400.5,0.20649514]
[1725457127836,7.17e-06,2401.1,2400.4,5.0]
[1725457128147,7.17e-06,2401.1,2401.0,0.41651]
[1725457128336,7.17e-06,2401.1,2401.0,0.62859775]
[1725457128832,7.17e-06,2401.1,2401.0,0.41651]
[1725457129233,7.17e-06,2401.1,2400.6,3.2078]
[1725457129436,7.17e-06,2401.1,2401.0,0.41651]
[1725457129835,7.17e-06,2401.1,2401.0,0.62855608]
[1725457130146,3.20780717,2401.1,2400.9,0.41652]
[1725457130349,3.20780717,2401.1,2401.0,0.41651]
[1725457130641,7.17e-06,2401.1,2401.0,0.41651]
[1725457131350,7.17e-06,2401.1,2401.0,14.83039]
[1725457131559,7.17e-06,2401.1,2401.0,29.65131415]
[1725457132735,7.17e-06,2401.1,2401.0,30.03471415]
[1725457132939,7.17e-06,2401.1,2401.0,22.99343415]
[1725457133138,7.17e-06,2401.1,2401.0,30.03471415]
[1725457133338,7.17e-06,2401.1,2401.0,28.99343415]
[1725457133748,7.17e-06,2401.1,2401.0,30.03471415]
[1725457134745,7.17e-06,2401.1,2401.0,26.82691415]
[1725457135542,0.3849,2402.6,2401.8,1.04092]
[1725457135750,0.3849,2402.6,2402.0,0.41632]
[1725457135944,3.2078,2402.1,2401.5,3.2078]
[1725457136249,3.2078,2402.1,2401.8,0.41636]
[1725457136540,3.2078,2402.1,2401.7,0.00624402]
[1725457136742,3.2078,2401.8,2401.7,0.00624402]
[1725457137254,4.164,2401.8,2401.7,0.00624402]
[1725457137542,7.7633,2401.8,2401.7,0.00624402]
[1725457137744,7.7633,2401.8,2400.8,0.2049001]
[1725457137745,13.7633,2401.8,2400.8,0.2049001]
[1725457137940,13.7633,2401.8,2401.2,0.41647]
[1725457137941,3.2078,2401.5,2401.2,0.41647]
[1725457138147,3.2078,2401.5,2401.3,0.41646]
[1725457138343,3.2078,2401.5,2400.8,8.88396586]
[1725457138644,0.3915,2401.8,2400.5,3.5784]
[1725457138645,3.2078,2401.2,2400.5,3.2078]
[1725457138850,3.2078,2401.2,2400.6,0.00624402]
[1725457139145,3.2078,2401.2,2400.8,0.41653]
[1725457139347,3.2078,2401.2,2400.7,0.41656]
[1725457139545,3.2078,2401.2,2400.6,0.00624402]
[1725457139748,3.2078,2401.2,2400.8,0.41654]
[1725457140046,3.2078,2401.2,2400.6,0.00624402]
[1725457140248,3.2078,2401.2,2401.1,0.41649]
[1725457140447,3.2078,2401.2,2400.6,0.35914402]
[1725457140749,3.2078,2401.2,2401.1,0.41649]
[1725457141049,3.2078,2401.2,2400.7,8.94492452]
[1725457141247,3.2078,2401.2,2401.1,0.41649]
[1725457141548,3.2078,2401.2,2400.6,0.00624402]
[1725457141748,3.2078,2400.9,2400.6,0.00624402]
[1725457142255,0.7413,2400.8,2400.6,0.00624402]
[1725457143343,3.2078,2400.9,2400.6,0.00624402]
[1725457143546,4.1656,2400.8,2400.6,0.00624402]
[1725457143749,4.9077,2400.8,2400.0,0.41667]
[1725457144054,4.9077,2400.8,2399.7,0.41672]
[1725457144055,3.2078,2400.3,2399.7,0.41672]
[1725457144250,0.41662,2400.4,2399.8,0.41671]
[1725457144251,3.2078,2400.0,2399.8,0.41671]
[1725457144752,3.2078,2400.0,2399.4,0.3538]
[1725457144940,3.2078,2400.0,2399.9,0.4167]
[1725457145141,3.2078,2400.0,2399.3,0.20498878]
[1725457145442,3.2078,2399.4,2398.7,1.39606]
[1725457145644,3.2078,2399.1,2398.7,0.20598337]
[1725457145944,3.2078,2399.1,2398.4,5.366]
[1725457146144,3.2078,2399.1,2399.0,0.41686]
[1725457146343,0.39634402,2399.3,2399.0,0.41686]
[1725457146549,3.60414402,2399.3,2399.0,0.41686]
[1725457146751,3.60414402,2399.3,2398.9,0.2069838]
[1725457146945,3.60414402,2399.3,2398.8,0.41688]
[1725457147147,3.60414402,2399.3,2398.9,0.41687]
[1725457147340,3.60414402,2399.3,2398.4,8.78486887]
[1725457147341,0.39634402,2399.3,2399.0,0.41685]
[1725457147540,3.2078,2399.2,2398.7,0.41691]
[1725457147758,3.2078,2398.9,2398.4,0.21106887]
[1725457148047,3.2078,2398.9,2398.8,0.41689]
[1725457148349,3.2078,2398.9,2398.3,0.20527474]
[1725457148656,0.39634402,2399.3,2398.3,0.20527474]
[1725457148657,3.60414402,2399.3,2398.6,1.04232]
[1725457148848,3.60414402,2399.3,2399.0,0.41684]
[1725457149049,0.00624402,2399.3,2399.2,0.41682]
[1725457149258,3.2078,2399.6,2399.5,0.41676]
[1725457149553,3.2078,2399.6,2399.2,0.41682]
[1725457149746,3.2078,2399.6,2399.4,0.41678]
[1725457149942,3.2078,2399.6,2398.8,5.0]
[1725457150148,3.2078,2399.3,2399.2,0.41681]
[1725457150544,0.00624402,2399.4,2399.2,0.41681]
[1725457150743,0.00624402,2399.4,2399.3,0.4168]
[1725457151250,0.00624402,2399.4,2399.3,4.5848]
[1725457151458,0.00624402,2399.4,2399.3,0.4168]
[1725457152258,3.21404402,2399.4,2399.1,0.41683]
[1725457152453,3.21404402,2399.4,2399.2,0.4168]
[1725457152661,3.21404402,2399.4,2399.0,0.00624402]
[1725457152951,3.21404402,2399.4,2399.3,0.4168]
[1725457153156,3.21404402,2399.4,2399.1,0.41684]
[1725457153354,3.21404402,2399.4,2399.3,0.4168]
[1725457153554,3.21404402,2399.4,2399.0,0.00624402]
[1725457153858,3.2078,2399.1,2399.0,0.00624402]
[1725457154045,13.3758,2399.1,2398.0,0.3894]
[1725457154247,3.2078,2398.6,2398.3,0.41697]
[1725457154551,3.2078,2398.6,2398.4,0.41696]
[1725457154746,3.2078,2398.6,2398.5,0.41694]
[1725457154948,1.0776,2399.0,2398.2,4.25026]
[1725457154949,4.2854,2399.0,2398.2,4.25026]
[1725457155156,3.2078,2398.9,2398.3,1.04245]
[1725457155355,3.2078,2398.9,2398.6,0.41692]
[1725457155855,3.2078,2398.9,2398.4,0.41695]
[1725457155856,7.3766,2398.9,2398.4,0.41695]
[1725457156153,3.2078,2398.6,2397.9,0.3707]
[1725457156364,3.2078,2398.6,2398.4,0.41696]
[1725457156859,3.2078,2398.6,2398.1,0.21149724]
[1725457157060,3.2078,2398.7,2398.2,0.41698]
[1725457157259,3.2078,2398.7,2398.4,0.41695]
[1725457157765,3.2078,2398.7,2398.3,0.41697]
[1725457157948,3.2078,2398.4,2397.7,4.25051]
[1725457158268,3.2078,2398.4,2398.1,0.41701]
[1725457158559,3.2078,2398.4,2397.8,4.25047]
[1725457158750,3.2078,2398.4,2398.2,0.417]
[1725457159060,3.2078,2398.4,2397.7,1.04269]
[1725457159268,3.2078,2398.4,2398.3,0.41697]
[1725457159471,3.2078,2398.4,2398.2,0.41699]
[1725457159762,3.2078,2398.4,2397.7,1.04271]
[1725457159763,9.2078,2398.4,2397.7,0.41708]
[1725457159964,3.2078,2398.2,2397.3,1.04286]
[1725457160151,0.00624402,2398.0,2397.3,4.25066]
[1725457160354,3.2078,2397.9,2397.7,0.41708]
[1725457160556,0.00624402,2398.0,2397.9,0.41705]
[1725457160756,0.00624402,2398.0,2397.9,4.58745]
[1725457160960,3.2078,2398.6,2397.9,11.21303]
[1725457161154,3.2078,2398.6,2398.5,0.41694]
[1725457161763,3.2078,2398.6,2398.4,0.41695]
[1725457161954,3.2078,2398.6,2398.4,0.41696]
[1725457162162,3.2078,2398.6,2398.3,0.00624402]
[1725457162457,4.58655,2398.5,2398.3,0.00624402]
[1725457162666,4.1696,2398.5,2398.3,0.00624402]
[1725457162864,4.5369,2398.4,2398.3,0.00624402]
[1725457163161,10.95386,2398.4,2398.3,0.00624402]
[1725457163366,10.5369,2398.4,2397.1,5.7503]
[1725457163662,3.2078,2397.6,2397.2,0.41716]
[1725457164060,3.2078,2397.6,2396.7,6.04312]
[1725457164061,3.2078,2397.6,2397.3,0.41715]
[1725457164369,3.2078,2397.6,2396.7,6.25502823]
[1725457164564,0.3864,2397.5,2396.7,5.21190823]
[1725457164869,3.21405743,2397.7,2397.1,5.0]
[1725457165164,3.21405743,2397.7,2397.4,0.41713]
[1725457165363,3.21405743,2397.7,2397.3,0.41714]
[1725457165562,3.21405743,2397.7,2396.7,1.25503823]
[1725457165563,3.21405743,2397.7,2396.7,5.21190823]
[1725457165766,3.21405743,2397.7,2397.2,0.41716]
[1725457166070,3.21405743,2397.7,2397.5,0.41712]
[1725457166259,3.21405743,2397.7,2397.4,0.41712]
[1725457166460,3.21405743,2397.7,2397.3,0.41714]
[1725457166667,3.2078,2397.4,2396.9,3.2078]
[1725457166971,0.00625743,2397.7,2396.8,13.10488605]
[1725457167159,0.00625743,2397.7,2397.1,3.2078]
[1725457167362,3.2078,2397.4,2397.3,0.41715]
[1725457167857,3.21405743,2397.7,2396.9,4.25086]
[1725457168065,3.21405743,2397.7,2397.3,0.41714]
[1725457168264,3.2078,2397.4,2397.3,0.41714]
[1725457168470,3.2078,2397.4,2397.0,0.41719]
[1725457168770,3.2078,2397.4,2396.6,0.50775065]
[1725457169070,3.2078,2397.1,2397.0,0.4172]
[1725457169469,3.2078,2397.1,2396.6,0.14825065]
[1725457169665,0.00625743,2397.7,2397.1,0.41718]
[1725457169666,3.2078,2397.3,2397.1,0.41718]
[1725457169859,3.2078,2397.6,2397.3,0.41714]
[1725457170064,3.2078,2397.6,2397.1,0.41718]
[1725457170365,3.2078,2397.6,2396.6,1.24841535]
[1725457170366,3.2078,2397.3,2397.2,0.41717]
[1725457170563,3.2078,2397.3,2396.8,1.0431]
[1725457170767,3.2078,2397.3,2396.7,5.3563]
[1725457171062,0.391,2397.5,2396.8,1.0431]
[1725457171268,3.2078,2397.3,2397.2,0.41717]
[1725457171460,3.2078,2397.6,2397.2,1.04293]
[1725457171661,3.2078,2397.6,2397.0,1.04301]
[1725457171662,3.2078,2397.6,2397.5,0.41712]
[1725457172062,7.379,2397.6,2397.2,0.41716]
[1725457172262,0.391,2397.5,2397.2,0.41716]
[1725457172463,0.391,2397.5,2396.7,0.41725]
[1725457172464,3.62496,2397.3,2396.7,0.41725]
[1725457172664,3.2078,2397.0,2396.9,0.41722]
[1725457173466,0.3876,2397.2,2397.0,0.4172]
[1725457173671,0.3876,2397.2,2397.1,0.41719]
[1725457173968,0.3876,2397.2,2397.0,0.4172]
[1725457174159,0.3876,2397.2,2396.8,0.41723]
[1725457174160,3.2078,2397.1,2396.8,0.41723]
[1725457174359,3.2078,2397.1,2396.6,0.2078812]
[1725457174768,0.80813,2397.5,2396.5,3.2078]
[1725457174769,0.391,2397.5,2396.5,3.2078]
[1725457174961,0.391,2397.5,2397.2,0.41716]
[1725457174962,3.5988,2397.5,2397.2,0.41716]
[1725457175472,3.5988,2397.5,2397.3,0.41714]
[1725457175776,0.38785743,2397.7,2397.5,0.4171]
[1725457175961,0.38785743,2397.7,2397.3,0.41714]
[1725457176162,0.38785743,2397.7,2397.4,0.41713]
[1725457176163,3.2078,2397.5,2397.4,0.41713]
[1725457176366,3.2078,2397.5,2396.8,0.3875]
[1725457176560,3.2078,2397.2,2396.9,0.20930019]
[1725457176760,3.2078,2397.2,2396.5,1.0432]
[1725457176970,3.2078,2396.9,2396.6,0.62399349]
[1725457177170,3.2078,2396.8,2395.9,7.07757843]
[1725457177387,3.5617,2396.8,2396.5,0.41729]
[1725457177565,3.5617,2396.8,2396.1,1.04341]
[1725457177770,3.2078,2396.5,2396.4,0.41731]
[1725457177968,3.2078,2396.5,2396.2,0.41733]
[1725457178167,3.2078,2396.5,2395.7,1.1498]
[1725457178373,3.2078,2396.5,2395.7,0.7322]
[1725457178570,3.2078,2396.5,2396.4,0.41731]
[1725457178782,0.00625743,2396.6,2396.5,0.41729]
[1725457178975,0.00625743,2396.6,2396.5,4.59009]
[1725457179567,0.00625743,2396.6,2396.5,0.41729]
[1725457179878,0.00625743,2396.6,2395.8,4.25132]
[1725457180083,3.2078,2396.5,2395.8,1.04352]
[1725457180273,3.2078,2396.5,2395.7,6.04358]
[1725457180473,3.2078,2396.5,2396.2,0.41733]
[1725457180678,0.00625743,2396.6,2396.2,0.41733]
[1725457180876,3.2078,2396.5,2396.2,0.41733]
[1725457181178,0.00625743,2396.6,2396.1,0.20550232]
[1725457181369,0.00625743,2396.6,2396.5,0.41729]
[1725457181573,0.00625743,2396.6,2396.5,4.59009]
[1725457181975,0.00625743,2396.6,2396.5,7.79789]
[1725457182271,1.341e-05,2396.6,2396.5,14.84113]
[1725457182473,1.341e-05,2396.6,2396.5,10.59009]
[1725457182770,1.341e-05,2396.6,2396.5,4.59009]
[1725457182971,1.341e-05,2396.6,2396.5,10.59009]
[1725457183688,1.341e-05,2396.6,2396.5,11.63333]
[1725457183986,1.341e-05,2396.6,2396.5,12.67657]
[1725457184185,1.341e-05,2396.6,2396.5,21.33223171]
[1725457184372,0.3659,2398.0,2396.8,1.04307]
[1725457184373,3.2078,2397.7,2396.8,1.04307]
[1725457184577,3.2078,2397.7,2396.9,5.7313]
[1725457184780,3.2078,2397.7,2397.5,0.41712]
[1725457184971,3.2078,2397.7,2397.3,0.41715]
[1725457185178,3.2078,2397.7,2397.0,3.2078]
[1725457185486,0.00625743,2397.6,2397.0,3.2078]
[1725457185676,0.00625743,2397.6,2396.9,5.7313]
[1725457185677,3.2078,2397.1,2396.9,0.7313]
[1725457185981,0.00625743,2397.6,2397.0,0.4172]
[1725457185982,3.2078,2397.5,2397.0,0.4172]
[1725457186177,3.2078,2397.2,2396.7,5.22725]
[1725457186373,3.2078,2397.2,2396.8,0.41723]
[1725457186576,3.2078,2396.9,2396.5,0.3912]
[1725457186777,0.3651,2397.3,2396.9,0.41721]
[1725457187077,0.3651,2397.3,2396.7,4.81]
[1725457187283,0.3651,2397.3,2397.1,0.41717]
[1725457187475,0.3651,2397.3,2397.1,0.41719]
[1725457187673,0.3651,2397.3,2396.7,4.81]
[1725457187674,3.5895,2397.4,2397.3,0.41715]
[1725457187876,3.5895,2397.4,2396.9,4.81]
[1725457188084,3.2078,2397.1,2396.8,0.41723]
[1725457188487,3.2078,2397.1,2396.6,13.71844606]
[1725457188685,3.5895,2397.4,2396.6,4.81]
[1725457188881,3.5895,2397.4,2397.3,0.41715]
[1725457189183,3.2078,2397.4,2397.2,0.2050188]
[1725457189381,0.00625743,2397.6,2397.4,0.41713]
[1725457189584,3.21405743,2397.6,2397.2,0.62112662]
[1725457189780,3.21405743,2397.6,2396.9,0.41721]
[1725457189781,3.2078,2397.3,2396.9,0.41721]
[1725457189975,3.2078,2397.3,2397.0,0.4172]
[1725457190182,3.2078,2397.3,2397.0,0.41719]
[1725457190379,3.2078,2397.3,2397.2,0.41717]
[1725457190572,0.00625743,2397.6,2397.4,0.41713]
[1725457190778,0.00625743,2397.6,2397.5,0.41712]
[1725457191780,0.00625743,2397.6,2397.4,0.41712]
[1725457191987,0.00625743,2397.6,2397.2,5.02179382]
[1725457192278,0.00625743,2397.6,2397.2,0.21179382]
[1725457192483,3.2078,2397.4,2397.1,0.3866]
[1725457192680,0.00625743,2397.6,2397.5,0.41712]
[1725457194384,0.00625743,2397.6,2397.5,4.58832]
[1725457194578,0.00625743,2397.6,2397.4,0.20987355]
[1725457194773,0.00625743,2397.6,2397.2,4.81]
[1725457194774,3.2078,2397.5,2396.9,4.81]
[1725457194976,0.00625743,2397.6,2396.4,4.81]
[1725457194977,3.2078,2397.2,2396.4,4.81]
[1725457195175,3.564,2397.1,2396.8,0.41724]
[1725457195479,0.3684,2397.4,2397.2,0.41716]
[1725457195480,3.5762,2397.4,2397.2,0.41716]
[1725457195789,3.5762,2397.4,2397.1,0.41718]
[1725457195987,3.5762,2397.4,2396.9,0.41722]
[1725457196287,3.5762,2397.4,2397.2,0.41716]
[1725457196584,3.5762,2397.4,2397.0,0.4172]
[1725457196886,3.2078,2397.1,2396.8,0.41723]
[1725457197089,3.2078,2397.1,2396.6,4.81]
[1725457197478,3.5762,2397.4,2396.9,4.81]
[1725457197787,3.2078,2397.4,2397.2,0.41716]
[1725457197992,3.2078,2397.4,2397.3,0.21143157]
[1725457198289,3.2078,2397.4,2397.2,0.41717]
[1725457198480,3.2078,2397.4,2397.3,0.41715]
[1725457199393,0.00625743,2397.6,2397.5,0.41712]
[1725457199589,0.00625743,2397.6,2397.2,0.21178625]
[1725457199886,3.2078,2397.5,2396.8,6.21088]
[1725457200090,3.2078,2397.5,2397.2,0.41717]
[1725457200287,3.2078,2397.5,2396.9,3.2078]
[1725457200686,3.2078,2397.5,2397.4,0.41713]
[1725457200990,0.00625743,2397.6,2397.5,0.41712]
[1725457201191,0.00625743,2397.6,2397.5,4.58832]
[1725457201579,0.00625743,2397.6,2397.5,0.41712]
[1725457202287,0.00625743,2397.6,2397.5,4.96912]
[1725457202889,0.00625743,2397.6,2397.5,12.57170204]
[1725457203082,3.77712257,2398.3,2397.5,12.15458204]
[1725457203283,1.6115849,2398.5,2398.4,0.41696]
[1725457203495,1.6115849,2398.8,2398.6,0.41692]
[1725457203788,0.7334,2398.9,2398.2,3.2078]
[1725457203789,5.5527849,2398.9,2398.2,9.06028]
[1725457203980,5.5527849,2398.9,2398.3,0.55966075]
[1725457204182,0.00625743,2398.8,2398.7,0.41691]
[1725457204381,0.00625743,2398.8,2398.7,5.22691]
[1725457204576,0.00625743,2398.8,2398.7,5.43312912]
[1725457204781,0.00625743,2398.8,2398.5,4.81]
[1725457204983,0.00625743,2398.8,2398.5,5.22693]
[1725457205188,0.00625743,2398.8,2398.6,0.41691]
[1725457205379,0.00625743,2398.8,2398.7,0.41691]
[1725457205580,0.00625743,2398.8,2398.6,0.62299307]
[1725457205776,0.00625743,2398.8,2398.7,5.22691]
[1725457206184,0.00625743,2398.8,2398.7,8.64441339]
[1725457206382,0.00625743,2398.8,2398.7,20.89777339]
[1725457206383,7.43e-06,2398.8,2398.7,20.89777339]
[1725457206577,2.70692209,2399.8,2399.0,1.04213]
[1725457206578,1.6115849,2399.8,2399.0,1.04213]
[1725457206786,1.6115849,2399.9,2399.7,0.41673]
[1725457207089,1.6115849,2400.0,2399.5,5.22676]
[1725457207291,4.8193849,2400.1,2399.8,0.41671]
[1725457207494,3.2078,2400.1,2400.0,0.41668]
[1725457207991,3.2078,2400.1,2399.8,5.22671]
[1725457207992,7.3742,2400.1,2399.8,5.22671]
[1725457208289,0.73895743,2400.2,2399.8,4.81]
[1725457208491,0.73895743,2400.2,2399.8,5.22671]
[1725457208492,3.2078,2400.0,2399.8,5.22671]
[1725457208678,3.2078,2400.0,2399.7,0.00625743]
[1725457208892,0.41672,2399.8,2399.7,0.00625743]
[1725457209087,1.6115849,2399.8,2399.0,4.81]
[1725457209283,3.2078,2399.4,2399.0,5.22685]
[1725457209482,0.3601,2399.3,2399.0,4.81]
[1725457209990,0.3601,2399.3,2399.1,0.41683]
[1725457210196,0.3601,2399.3,2398.9,0.42312743]
[1725457210387,0.3601,2399.3,2399.0,0.41685]
[1725457210582,0.3601,2399.3,2398.9,0.00625743]
[1725457210787,0.3601,2399.3,2398.9,0.42311743]
[1725457210986,0.3601,2399.3,2398.9,0.00625743]
[1725457211187,0.3601,2399.3,2399.0,0.41685]
[1725457211390,0.3601,2399.3,2398.9,0.42311743]
[1725457211589,0.3601,2399.3,2399.0,0.41685]
[1725457211791,0.3601,2399.3,2398.9,0.42311743]
[1725457211997,0.3601,2399.3,2399.2,0.41682]
[1725457212588,0.3601,2399.3,2398.9,5.00625743]
[1725457212889,0.3601,2399.3,2399.1,0.41683]
[1725457213295,0.3601,2399.3,2398.9,0.00625743]
[1725457213485,0.3601,2399.3,2399.0,0.41685]
[1725457213684,0.3601,2399.3,2399.2,0.41682]
[1725457214282,7.3248,2399.7,2399.3,0.4168]
[1725457214487,7.3248,2399.7,2398.9,0.00625743]
[1725457214685,3.2078,2399.4,2399.0,0.41685]
[1725457214885,3.2078,2399.4,2399.2,0.41682]
[1725457215090,3.2078,2399.4,2399.0,0.41686]
[1725457215287,3.2078,2399.4,2398.9,0.42311743]
[1725457215498,3.2078,2399.4,2398.9,0.00625743]
[1725457215793,3.2078,2399.4,2399.0,0.41685]
[1725457216097,3.2078,2399.4,2399.3,0.4168]
[1725457216292,3.2078,2399.4,2399.2,0.41681]
[1725457216603,3.2078,2399.4,2398.9,3.21405743]
[1725457216904,3.2078,2399.7,2399.6,0.41675]